Workbook

Sheet شيت رواتب
B1: رواتب شهر | C1: 2021-02-01 | D1: مشروع: | E1: توشكي
A2: م | B2: الكود | C2: الاسم | D2: المهنة | E2: الراتب الأساسي | F2: عددأيام العمل | G2: قيمة أيام العمل | H2: عدد أيام الإضافي | I2: قيمة أيام الإضافي | J2: عدد ساعات الإضافي | K2: قيمة الساعة | L2: قيمة ساعات الإضافي | M2: اكراميات | N2: بدل طبيعة عمل | O2: بدل إجازة | P2: اجمالي السلف | Q2: اجمالي الاستحقاق | R2: صافي المرتب
A3: 1 | B3: 7904 | C3: جمال الوكيل | D3: مهندس معمل | E3: 6000 | F3: 30 | G3: =E3/30*F3 -> 6000 | H3: 2 | I3: =E3/30*H3 -> 400 | J3: 18.5 | K3: 20 | L3: =J3*K3 -> 370 | M3: 0 | N3: 0 | O3: =E3/30*4 -> 800 | P3: 1000 | Q3: =O3+L3+I3+G3 -> 7570 | R3: =Q3-P3 -> 6570
A4: 2 | B4: 7908 | C4: محمود فواد عبدالله | D4: مهندس ميكانيكا | E4: 9000 | F4: 30 | G4: =E4/30*F4 -> 9000 | H4: 1 | I4: =E4/30*H4 -> 300 | J4: 33 | K4: 20 | L4: =J4*K4 -> 660 | M4: 0 | N4: 0 | O4: =E4/30*2 -> 600 | P4: 3000 | Q4: =O4+L4+I4+G4 -> 10560 | R4: =Q4-P4 -> 7560
A5: 3 | B5: 7909 | C5: حمودة عبدالسلام احمد | D5: مهندس كهرباء | E5: 7500 | F5: 30 | G5: 7500 | H5: 3 | I5: 750 | J5: 25 | K5: 20 | L5: 500 | M5: 0 | N5: 0 | O5: 500 | P5: 2500 | Q5: 9250 | R5: 6750

Sheet ايصالات
A1: الكود | B1: =IFERROR(VLOOKUP($M1,'شيت رواتب'!$A$3:$R$5000,2,0),"") -> 7904 | M1: 1
A2: اسم الموظف | B2: =IFERROR(VLOOKUP($M1,'شيت رواتب'!$A$3:$R$5000,3,0),"") -> جمال الوكيل
A3: المهنة | B3: =IFERROR(VLOOKUP($M1,'شيت رواتب'!$A$3:$R$5000,4,0),"") -> مهندس معمل
A4: الراتب الأساسي | B4: =IFERROR(VLOOKUP($M1,'شيت رواتب'!$A$3:$R$5000,5,0),"") -> 6000
A5: راتب شهر | B5: مشروع | C5: عددأيام العمل | D5: قيمة أيام العمل | E5: عدد أيام الإضافي | F5: قيمة أيام الإضافي | G5: عدد ساعات الإضافي | H5: قيمة ساعات الإضافي | I5: اكراميات | J5: بدل طبيعة عمل | K5: بدل إجازة | L5: اجمالي السلف | M5: اجمالي الاستحقاق | N5: صافي المرتب | O5: التوقيع
A6: ='شيت رواتب'!$C$1 -> 2021-02-01 | B6: ='شيت رواتب'!$E$1 -> توشكي | C6: =IFERROR(VLOOKUP($M1,'شيت رواتب'!$A$3:$R$5000,6,0),"") -> 30 | D6: =IFERROR(VLOOKUP($M1,'شيت رواتب'!$A$3:$R$5000,7,0),"") -> 6000 | E6: =IFERROR(VLOOKUP($M1,'شيت رواتب'!$A$3:$R$5000,8,0),"") -> 2 | F6: =IFERROR(VLOOKUP($M1,'شيت رواتب'!$A$3:$R$5000,9,0),"") -> 400 | G6: =IFERROR(VLOOKUP($M1,'شيت رواتب'!$A$3:$R$5000,10,0),"") -> 18.5 | H6: =IFERROR(VLOOKUP($M1,'شيت رواتب'!$A$3:$R$5000,12,0),"") -> 370 | I6: =IFERROR(VLOOKUP($M1,'شيت رواتب'!$A$3:$R$5000,13,0),"") -> 0 | J6: =IFERROR(VLOOKUP($M1,'شيت رواتب'!$A$3:$R$5000,14,0),"") -> 0 | K6: =IFERROR(VLOOKUP($M1,'شيت رواتب'!$A$3:$R$5000,15,0),"") -> 800 | L6: =IFERROR(VLOOKUP($M1,'شيت رواتب'!$A$3:$R$5000,16,0),"") -> 1000 | M6: =IFERROR(VLOOKUP($M1,'شيت رواتب'!$A$3:$R$5000,17,0),"") -> 7570 | N6: =IFERROR(VLOOKUP($M1,'شيت رواتب'!$A$3:$R$5000,18,0),"") -> 6570
A8: أقر انا الموقع أعلاه أنني استلمت الراتب الموضح أعلاه | D8: فقط لاغير | E8: =NumberToText($N6,"جنيه","قرشاً") -> ستة ألاف وخمسمائة وسبعون جنيه
A10: الكود | B10: =IFERROR(VLOOKUP($M10,'شيت رواتب'!$A$3:$R$5000,2,0),"") -> 7908 | M10: =M1+1 -> 2
A11: اسم الموظف | B11: =IFERROR(VLOOKUP($M10,'شيت رواتب'!$A$3:$R$5000,3,0),"") -> محمود فواد عبدالله
A12: المهنة | B12: =IFERROR(VLOOKUP($M10,'شيت رواتب'!$A$3:$R$5000,4,0),"") -> مهندس ميكانيكا
A13: الراتب الأساسي | B13: =IFERROR(VLOOKUP($M10,'شيت رواتب'!$A$3:$R$5000,5,0),"") -> 9000
A14: راتب شهر | B14: مشروع | C14: عددأيام العمل | D14: قيمة أيام العمل | E14: عدد أيام الإضافي | F14: قيمة أيام الإضافي | G14: عدد ساعات الإضافي | H14: قيمة ساعات الإضافي | I14: اكراميات | J14: بدل طبيعة عمل | K14: بدل إجازة | L14: اجمالي السلف | M14: اجمالي الاستحقاق | N14: صافي المرتب | O14: التوقيع
A15: ='شيت رواتب'!$C$1 -> 2021-02-01 | B15: ='شيت رواتب'!$E$1 -> توشكي | C15: =IFERROR(VLOOKUP($M10,'شيت رواتب'!$A$3:$R$5000,6,0),"") -> 30 | D15: =IFERROR(VLOOKUP($M10,'شيت رواتب'!$A$3:$R$5000,7,0),"") -> 9000 | E15: =IFERROR(VLOOKUP($M10,'شيت رواتب'!$A$3:$R$5000,8,0),"") -> 1 | F15: =IFERROR(VLOOKUP($M10,'شيت رواتب'!$A$3:$R$5000,9,0),"") -> 300 | G15: =IFERROR(VLOOKUP($M10,'شيت رواتب'!$A$3:$R$5000,10,0),"") -> 33 | H15: =IFERROR(VLOOKUP($M10,'شيت رواتب'!$A$3:$R$5000,12,0),"") -> 660 | I15: =IFERROR(VLOOKUP($M10,'شيت رواتب'!$A$3:$R$5000,13,0),"") -> 0 | J15: =IFERROR(VLOOKUP($M10,'شيت رواتب'!$A$3:$R$5000,14,0),"") -> 0 | K15: =IFERROR(VLOOKUP($M10,'شيت رواتب'!$A$3:$R$5000,15,0),"") -> 600 | L15: =IFERROR(VLOOKUP($M10,'شيت رواتب'!$A$3:$R$5000,16,0),"") -> 3000 | M15: =IFERROR(VLOOKUP($M10,'شيت رواتب'!$A$3:$R$5000,17,0),"") -> 10560 | N15: =IFERROR(VLOOKUP($M10,'شيت رواتب'!$A$3:$R$5000,18,0),"") -> 7560
A17: أقر انا الموقع أعلاه أنني استلمت الراتب الموضح أعلاه | D17: فقط لاغير | E17: =NumberToText($N15,"جنيه","قرشاً") -> سبعة ألاف وخمسمائة وستون جنيه
A19: الكود | B19: =IFERROR(VLOOKUP($M19,'شيت رواتب'!$A$3:$R$5000,2,0),"") -> 7909 | M19: =M10+1 -> 3
A20: اسم الموظف | B20: =IFERROR(VLOOKUP($M19,'شيت رواتب'!$A$3:$R$5000,3,0),"") -> حمودة عبدالسلام احمد
A21: اسم الموظف | B21: =IFERROR(VLOOKUP($M19,'شيت رواتب'!$A$3:$R$5000,4,0),"") -> مهندس كهرباء
A22: الراتب الأساسي | B22: =IFERROR(VLOOKUP($M19,'شيت رواتب'!$A$3:$R$5000,5,0),"") -> 7500
A23: راتب شهر | B23: مشروع | C23: عددأيام العمل | D23: قيمة أيام العمل | E23: عدد أيام الإضافي | F23: قيمة أيام الإضافي | G23: عدد ساعات الإضافي | H23: قيمة ساعات الإضافي | I23: اكراميات | J23: بدل طبيعة عمل | K23: بدل إجازة | L23: اجمالي السلف | M23: اجمالي الاستحقاق | N23: صافي المرتب | O23: التوقيع
A24: ='شيت رواتب'!$C$1 -> 2021-02-01 | B24: ='شيت رواتب'!$E$1 -> توشكي | C24: =IFERROR(VLOOKUP($M19,'شيت رواتب'!$A$3:$R$5000,6,0),"") -> 30 | D24: =IFERROR(VLOOKUP($M19,'شيت رواتب'!$A$3:$R$5000,7,0),"") -> 7500 | E24: =IFERROR(VLOOKUP($M19,'شيت رواتب'!$A$3:$R$5000,8,0),"") -> 3 | F24: =IFERROR(VLOOKUP($M19,'شيت رواتب'!$A$3:$R$5000,9,0),"") -> 750 | G24: =IFERROR(VLOOKUP($M19,'شيت رواتب'!$A$3:$R$5000,10,0),"") -> 25 | H24: =IFERROR(VLOOKUP($M19,'شيت رواتب'!$A$3:$R$5000,12,0),"") -> 500 | I24: =IFERROR(VLOOKUP($M19,'شيت رواتب'!$A$3:$R$5000,13,0),"") -> 0 | J24: =IFERROR(VLOOKUP($M19,'شيت رواتب'!$A$3:$R$5000,14,0),"") -> 0 | K24: =IFERROR(VLOOKUP($M19,'شيت رواتب'!$A$3:$R$5000,15,0),"") -> 500 | L24: =IFERROR(VLOOKUP($M19,'شيت رواتب'!$A$3:$R$5000,16,0),"") -> 2500 | M24: =IFERROR(VLOOKUP($M19,'شيت رواتب'!$A$3:$R$5000,17,0),"") -> 9250 | N24: =IFERROR(VLOOKUP($M19,'شيت رواتب'!$A$3:$R$5000,18,0),"") -> 6750
A26: أقر انا الموقع أعلاه أنني استلمت الراتب الموضح أعلاه | D26: فقط لاغير | E26: =NumberToText($N24,"جنيه","قرشاً") -> ستة ألاف وسبعمائة وخمسون جنيه
